bitfinex/quotes_ETHUSD_20260302
["timestamp","ask_amount","ask_price","bid_price","bid_amount"]
[1772478227869,2.89740452,2027.8,2026.9,6.109266]
[1772478227870,1.23285387,2027.9,2026.9,1.594]
[1772478228071,7.50248055,2028.0,2027.3,2.43524331]
[1772478228311,0.002,2028.8,2027.9,2.43524331]
[1772478228528,1.23231626,2028.7,2028.0,4.515266]
[1772478228675,7.50201459,2028.7,2028.0,4.515266]
[1772478228987,0.002,2028.6,2028.0,4.515266]
[1772478229802,0.01353861,2028.5,2028.0,4.515266]
[1772478230292,1.23249852,2028.4,2028.0,4.515266]
[1772478230493,0.01353861,2028.3,2028.0,4.515266]
[1772478231608,0.01353861,2028.3,2027.6,1.594]
[1772478232104,0.01353861,2028.3,2027.7,2.43524331]
[1772478232312,0.01353861,2028.3,2027.8,1.2328632]
[1772478232475,0.01353861,2028.3,2028.0,2.43524331]
[1772478232676,0.002,2028.6,2028.0,4.02924331]
[1772478233011,0.002,2029.0,2028.3,8.54337066]
[1772478233303,0.002,2029.1,2028.6,2.43524331]
[1772478233879,0.002,2029.1,2028.7,4.513266]
[1772478234074,0.002,2029.1,2028.8,1.596]
[1772478234281,0.002,2029.1,2028.7,5.74555899]
[1772478234595,0.002,2029.1,2028.8,1.596]
[1772478235384,0.002,2029.1,2028.3,4.93009743]
[1772478235584,0.002,2029.1,2028.4,14.86552914]
[1772478235999,0.002,2029.1,2028.5,1.596]
[1772478236208,0.002,2029.3,2028.6,2.42888801]
[1772478236507,0.002,2029.3,2028.7,1.23231626]
[1772478236808,7.50113307,2030.2,2029.0,8.53501536]
[1772478237013,7.50113307,2030.2,2029.1,1.597]
[1772478237218,7.50112336,2030.2,2029.1,12.21639335]
[1772478237428,7.50112336,2030.2,2029.2,1.598]
[1772478238018,7.50112336,2030.2,2029.3,7.52695269]
[1772478238219,7.50112336,2030.2,2029.3,1.598]
[1772478238603,7.50112336,2030.2,2029.4,1.23189119]
[1772478238812,7.50112336,2030.2,2029.3,2.82990495]
[1772478239007,7.50112336,2030.2,2029.2,5.92895269]
[1772478239332,7.50112336,2030.2,2029.3,7.52695269]
[1772478239488,7.50112336,2030.2,2029.3,1.598]
[1772478239915,1.23337111,2030.3,2029.4,6.110266]
[1772478240185,0.002,2030.3,2029.5,6.10612735]
[1772478240429,0.002,2030.5,2030.1,2.42888801]
[1772478240735,0.002,2030.5,2029.8,6.10612735]
[1772478240736,0.002,2030.7,2030.2,5.92695269]
[1772478240905,6.27169833,2030.7,2030.0,1.597]
[1772478241214,0.002,2030.0,2029.8,1.597]
[1772478241418,0.002,2030.0,2029.7,1.41568669]
[1772478241618,0.002,2030.0,2029.7,3.01368669]
[1772478242113,0.002,2030.2,2029.7,1.41568669]
[1772478242305,6.27169833,2030.2,2029.4,1.598]
[1772478242518,1.23146643,2030.1,2029.5,5.92695269]
[1772478242914,7.50314706,2030.2,2029.5,7.15877925]
[1772478243120,7.50314706,2030.2,2029.5,5.92695269]
[1772478243622,7.50314706,2030.2,2029.5,7.15877611]
[1772478243834,7.50314706,2030.2,2029.5,5.92695269]
[1772478244537,4.92690022,2030.5,2029.7,2.42888801]
[1772478244538,6.27169833,2030.5,2029.7,2.42888801]
[1772478244692,0.002,2030.5,2029.8,1.597]
[1772478244895,0.002,2030.5,2029.8,7.52395269]
[1772478245303,0.002,2030.5,2029.8,5.92695269]
[1772478245503,0.002,2030.5,2029.9,1.598]
[1772478246009,0.002,2030.7,2030.0,7.52495269]
[1772478246214,0.002,2030.7,2030.0,1.598]
[1772478246415,4.92577687,2031.0,2030.2,5.47915795]
[1772478246416,0.002,2031.0,2030.2,5.47915795]
[1772478246617,0.002,2031.5,2030.9,3.65982065]
[1772478246813,0.002,2031.5,2031.0,1.599]
[1772478247019,8.96088721,2031.9,2031.0,5.92095269]
[1772478247020,6.26969833,2031.9,2031.0,5.92095269]
[1772478247213,7.50010373,2031.9,2031.1,1.6]
[1772478247423,7.49983698,2032.3,2031.4,2.42888801]
[1772478247759,7.49983698,2032.3,2031.5,1.602]
[1772478248552,7.49983698,2032.3,2031.5,7.52295269]
[1772478249527,7.49983698,2032.3,2031.0,2.42888801]
[1772478249528,7.49983698,2032.3,2031.3,1.601]
[1772478249935,7.49983698,2032.3,2031.2,1.6]
[1772478250120,6.26969833,2032.2,2031.2,1.6]
[1772478250639,6.26969833,2032.2,2031.3,5.92095269]
[1772478250847,6.26969833,2032.2,2031.2,7.52095269]
[1772478251630,6.26969833,2032.2,2031.3,1.23073893]
[1772478251812,7.4999211,2032.2,2031.4,1.598]
[1772478252007,7.4999211,2032.2,2031.5,1.41168669]
[1772478253135,7.4999211,2032.2,2030.1,6.05659452]
[1772478253136,6.26969833,2030.8,2029.0,2.42888801]
[1772478253334,0.14948499,2030.7,2029.7,5.00047183]
[1772478253509,0.966,2031.2,2029.9,5.00047183]
[1772478253712,7.50043726,2031.3,2030.0,2.85750798]
[1772478253945,7.50043726,2031.3,2030.0,8.96477398]
[1772478254818,7.50043726,2031.3,2030.0,6.107266]
[1772478255019,7.50043726,2031.3,2030.0,7.33876826]
[1772478255412,1.2306503,2031.5,2030.3,2.42888801]
[1772478255645,3.82962223,2031.6,2030.4,1.626]
[1772478255936,3.82962223,2031.6,2030.5,1.23122383]
[1772478255937,8.94709211,2031.6,2030.5,1.23122383]
[1772478256129,8.94709211,2031.6,2030.5,2.85722383]
[1772478256332,8.94709211,2031.6,2030.6,6.107266]
[1772478257528,3.82962223,2031.6,2030.6,6.107266]
[1772478257830,6.65883691,2031.4,2030.7,1.624]
[1772478258030,6.65883691,2031.4,2030.6,6.107266]
[1772478259241,5.42815857,2031.2,2030.0,1.622]
[1772478259844,1.23086012,2031.1,2030.0,2.85349186]
[1772478260927,6.65901869,2031.1,2030.0,1.23149186]
[1772478261135,6.65901869,2031.1,2030.1,1.62]
[1772478261340,2.90209948,2031.0,2030.1,1.62]
[1772478261743,1.23098133,2030.9,2030.1,1.62]
[1772478262930,5.42815857,2031.1,2030.1,2.85146519]
[1772478263128,1.23073893,2031.3,2030.2,3.39332236]
[1772478263368,2.90921017,2031.2,2030.2,3.39332236]
[1772478263532,2.90921017,2031.2,2030.2,4.00812562]
[1772478263732,2.90921017,2031.2,2030.1,2.84846519]
[1772478264053,1.23086012,2031.1,2030.1,2.84846519]
[1772478264759,2.91118736,2031.0,2030.1,2.84846519]
[1772478265063,1.23086012,2031.1,2030.1,2.84846519]
[1772478265064,7.72631933,2031.5,2030.3,3.82874887]
[1772478265253,5.42815857,2031.8,2030.6,3.39332236]
[1772478265564,0.40622817,2031.7,2030.7,1.616]
[1772478265762,5.42815857,2031.8,2030.7,1.616]
[1772478265961,1.63684015,2031.7,2030.8,1.23104195]
[1772478266162,6.65862336,2031.8,2030.8,1.23104195]
[1772478266364,5.83477016,2031.7,2030.8,1.23104195]
[1772478266529,5.42815857,2031.7,2030.8,1.23104195]
[1772478266863,5.83495055,2031.6,2030.7,1.23106672]
[1772478267032,5.42815857,2031.6,2030.7,2.84506672]
[1772478267433,5.43015857,2031.4,2030.6,1.23112287]
[1772478268041,1.23073893,2031.3,2030.6,1.23112287]
[1772478268361,1.23073893,2031.3,2030.5,2.84419714]
[1772478268675,0.002,2031.4,2030.5,6.5633421]
[1772478270638,0.002,2031.4,2030.5,1.23119714]
[1772478270837,0.002,2031.4,2030.6,1.61]
[1772478271274,0.002,2031.4,2030.7,1.61]
[1772478271965,0.002,2031.4,2030.5,1.23119714]
[1772478272191,0.002,2031.6,2030.7,3.37857013]
[1772478274367,0.002,2031.6,2030.8,1.23104195]
[1772478274572,0.002,2031.6,2030.9,1.605]
[1772478275385,5.43015857,2031.6,2030.8,1.23104195]
[1772478275676,5.43015857,2031.6,2031.0,1.604]
[1772478275877,5.43015857,2031.6,2030.8,1.23104195]
[1772478276285,5.83590981,2031.5,2030.8,1.23104195]
[1772478276448,1.63842958,2031.4,2030.8,1.23104195]
[1772478276649,5.42815857,2031.5,2030.8,1.23104195]
[1772478276882,0.40777293,2031.4,2030.8,1.23104195]
[1772478277197,2.92591655,2031.3,2030.8,1.23104195]
[1772478277490,2.92591655,2031.2,2030.8,1.23104195]
[1772478277779,6.65878314,2031.5,2030.5,1.23122383]
[1772478277780,2.92616537,2031.1,2030.5,1.23122383]
[1772478277988,6.66076152,2031.6,2030.6,1.603]
[1772478278147,3.49101808,2031.8,2030.7,5.35587948]
[1772478278346,10.34899747,2032.2,2030.7,5.35587948]
[1772478278347,11.02212799,2032.2,2031.1,6.5867396]
[1772478278546,11.02212799,2032.2,2031.2,6.95887948]
[1772478278547,6.65835539,2032.2,2031.2,6.95887948]
[1772478278794,6.65835539,2032.2,2031.2,5.35587948]
[1772478279087,0.002,2032.3,2031.4,5.35587948]
[1772478279288,0.002,2032.3,2031.1,6.5867396]
[1772478279592,1.23022829,2032.2,2031.5,1.602]
[1772478280105,4.92271533,2032.3,2031.5,1.602]
[1772478280106,1.23217929,2032.3,2031.5,1.602]
[1772478280389,4.92253518,2032.3,2031.6,1.23055719]
[1772478280957,4.92253518,2032.3,2031.4,1.6]
[1772478281198,0.002,2031.6,2031.4,1.6]
[1772478281401,4.92253518,2032.3,2031.4,1.6]
[1772478281606,0.002,2031.9,2031.4,1.6]
[1772478282787,0.002,2031.9,2031.5,1.23061777]
[1772478282989,0.002,2032.3,2031.7,3.39109516]
[1772478283165,0.002,2032.3,2031.6,3.39109516]
[1772478283561,0.002,2032.3,2031.3,4.92260191]
[1772478283768,0.002,2032.3,2031.3,1.23067834]
[1772478284176,0.002,2032.3,2031.9,3.39109516]
[1772478284472,0.002,2032.3,2031.6,3.39109516]
[1772478284684,0.002,2032.3,2031.8,4.86478193]
[1772478284886,0.002,2032.6,2031.8,4.86478193]
[1772478285087,0.002,2032.6,2031.9,3.63434587]
[1772478285291,7.32315857,2033.1,2032.3,3.63434587]
[1772478285292,1.892,2033.1,2032.3,3.63434587]
[1772478285494,1.892,2033.1,2032.0,3.63434587]
[1772478285692,7.32015857,2033.1,2032.0,3.63434587]
[1772478286205,1.891,2033.0,2032.0,5.35587948]
[1772478286713,1.891,2033.0,2032.1,1.23025441]
[1772478287269,1.891,2033.0,2032.1,6.58613389]
[1772478289691,1.891,2033.0,2032.4,6.01192276]
[1772478289692,1.887,2033.0,2032.4,6.01192276]
[1772478290213,7.46110565,2033.6,2032.4,6.01192276]
[1772478290214,3.39109516,2033.4,2032.4,6.01192276]
[1772478290386,1.886,2033.3,2032.4,6.01192276]
[1772478290975,3.39109516,2033.1,2032.5,1.2300123]
[1772478291200,1.886,2033.3,2032.5,1.2300123]
[1772478291606,3.1155289,2033.3,2032.5,1.2300123]
[1772478291901,3.1155289,2033.3,2032.1,4.9200492]
[1772478291902,3.39109516,2032.8,2032.0,1.23031496]
[1772478292274,3.39109516,2032.8,2032.0,7.24223772]
[1772478293301,3.39109516,2032.8,2032.3,0.001]
[1772478293504,0.002,2033.1,2032.3,6.01292276]
[1772478293703,3.39309516,2033.1,2032.3,6.01292276]
[1772478294622,3.39309516,2033.1,2032.3,0.001]
[1772478295312,0.002,2033.3,2032.4,6.01192276]
[1772478297514,1.882,2033.5,2032.6,6.01192276]
[1772478297880,3.39109516,2033.2,2032.5,1.2300123]
[1772478298593,6.23175573,2033.9,2032.6,6.01192276]
[1772478298813,1.878,2033.7,2032.6,6.01192276]
[1772478299030,3.39109516,2033.6,2032.6,6.01192276]
[1772478299719,3.39109516,2033.6,2032.7,1.22989127]
[1772478299935,3.39109516,2033.3,2032.6,4.91956511]
[1772478300098,3.39109516,2033.3,2032.7,1.22989127]
[1772478300297,3.39109516,2033.4,2032.7,1.22989127]
[1772478301018,3.39109516,2033.4,2032.3,0.001]
[1772478301019,3.39109516,2033.1,2032.3,0.001]
[1772478301219,3.39109516,2032.8,2032.3,1.23108602]
[1772478301427,1.878,2033.0,2032.3,7.24300878]
[1772478303029,1.878,2033.0,2032.0,4.92153338]
[1772478303030,3.39109516,2032.5,2032.0,0.001]
[1772478303325,1.877,2032.4,2032.0,1.23128887]
[1772478303928,0.07893903,2032.3,2032.0,1.23128887]
[1772478304116,0.07893903,2032.3,2032.0,0.001]
[1772478304842,7.54083537,2032.3,2031.8,0.001]
[1772478305346,7.54083537,2032.3,2031.0,6.07745876]
[1772478305347,3.39109516,2032.1,2031.1,7.24278288]
[1772478305499,0.07893903,2032.0,2031.1,7.24278288]
[1772478307021,12.72996323,2032.4,2031.1,1.23086012]
[1772478307222,12.72996323,2032.4,2031.4,6.01192276]
[1772478307859,6.23175573,2032.3,2031.3,0.001]
[1772478308234,1.23019387,2032.2,2031.3,0.001]
[1772478309058,6.23175573,2032.0,2031.3,0.001]
[1772478310137,9.62285089,2031.9,2031.3,0.001]
[1772478310322,1.23049662,2031.7,2031.3,0.001]
[1772478311139,1.23049662,2031.7,2030.8,1.23201906]
[1772478311140,6.23175573,2031.5,2030.8,1.23201906]
[1772478311516,3.89262804,2031.7,2030.8,1.23201906]
[1772478311740,1.879,2031.8,2030.8,7.24394182]
[1772478312230,9.3411974,2031.8,2030.8,7.24394182]
[1772478315353,6.23175573,2031.7,2030.8,1.23201906]
[1772478316531,1.23055719,2031.6,2030.8,0.001]
[1772478316860,7.59737339,2031.6,2030.8,0.001]
[1772478320545,1.23051909,2031.7,2031.0,0.001]
[1772478321456,7.42398232,2031.7,2031.0,0.001]
[1772478322572,8.61802819,2031.6,2031.0,0.001]
[1772478322741,6.19346323,2031.5,2031.0,0.001]
[1772478323070,1.23073893,2031.3,2031.0,0.001]
[1772478323368,9.84876712,2031.3,2030.8,0.001]
[1772478323563,7.42420216,2031.3,2030.8,0.001]
[1772478324134,2.42456496,2031.2,2030.7,0.001]
[1772478324441,6.19346323,2031.1,2030.7,0.001]
[1772478324637,1.886,2031.0,2030.7,0.001]
[1772478324863,6.19346323,2030.9,2030.7,0.001]
[1772478325063,1.23104195,2030.8,2030.5,0.001]
[1772478325256,3.11692451,2031.0,2030.5,0.001]
[1772478326569,1.886,2031.0,2030.5,0.001]
[1772478327345,1.886,2031.0,2030.5,1.23222383]
[1772478327755,1.886,2031.0,2030.5,7.62539738]
[1772478328678,3.11692845,2031.0,2030.5,0.001]
[1772478329361,9.31039168,2031.0,2030.5,0.001]
[1772478331399,8.61802819,2030.8,2030.4,0.001]
[1772478331688,3.11692845,2031.0,2030.4,0.001]
[1772478332749,3.11692845,2031.0,2030.7,0.001]
[1772478334086,1.897,2030.9,2030.7,0.001]
[1772478334383,1.898,2031.3,2030.7,6.39417355]
[1772478335652,1.898,2031.3,2030.8,7.6242155]
[1772478335847,1.2326857,2031.4,2030.8,7.6242155]
[1772478335848,0.002,2031.4,2030.8,7.6242155]
[1772478336917,1.23268236,2031.4,2030.8,7.6242155]
[1772478337224,0.002,2031.4,2030.8,7.6242155]
[1772478339231,1.894,2031.3,2030.7,1.23206213]
[1772478339533,6.19346323,2031.2,2030.7,1.23209968]
[1772478339684,7.42432335,2031.1,2030.5,0.001]
[1772478342817,6.19346323,2030.8,2030.5,0.001]
[1772478342991,4.32248841,2030.7,2030.2,0.001]
[1772478343182,1.896,2030.7,2030.2,1.23240425]
[1772478343415,1.896,2030.7,2030.2,0.001]
[1772478343714,1.2311632,2030.6,2030.2,0.001]
[1772478344121,1.896,2030.7,2030.2,0.001]
[1772478344693,1.897,2030.7,2030.2,0.001]
[1772478346088,3.12811664,2030.7,2030.2,0.001]
[1772478346304,1.897,2030.7,2030.2,0.001]
[1772478346495,6.19346323,2030.6,2030.2,0.001]
[1772478347324,6.19346323,2030.4,2030.0,0.001]
[1772478347554,1.897,2030.3,2030.0,0.001]
[1772478348224,1.23140577,2030.2,2030.0,0.001]
[1772478353358,7.45047893,2030.2,2029.6,0.001]
[1772478353572,6.21907316,2030.1,2029.4,0.001]
[1772478353853,6.21907316,2029.8,2029.4,0.001]
[1772478354007,1.91,2029.7,2029.4,0.001]
[1772478354329,1.91,2029.7,2029.1,0.001]
[1772478354330,1.2318305,2029.5,2029.1,0.001]
[1772478354527,1.911,2029.4,2029.1,0.001]
[1772478354738,6.21907316,2029.2,2028.3,7.53268316]
[1772478355100,1.912,2029.1,2028.3,7.53268316]
[1772478355710,8.13107316,2029.1,2028.3,7.53268316]
[1772478355912,1.912,2029.1,2028.3,7.53268316]
[1772478356418,1.911,2029.4,2028.3,7.53268316]
[1772478356810,1.911,2029.4,2028.4,6.30014757]
[1772478357211,1.916,2029.7,2028.4,6.30014757]
[1772478358424,3.14771145,2029.7,2028.6,6.30014757]
[1772478360036,3.14771145,2029.7,2028.8,6.30014757]
[1772478360539,3.14771145,2029.7,2028.9,7.53234235]
[1772478360951,9.36678461,2029.7,2028.9,7.53234235]
[1772478362659,3.14771145,2029.7,2028.9,7.53234235]
[1772478364156,6.21907316,2029.6,2028.9,7.53234235]
[1772478364764,1.2318305,2029.5,2028.9,7.53234235]
[1772478367163,4.92721675,2029.6,2028.9,7.53234235]
[1772478367762,6.21907316,2029.5,2028.6,6.30014757]
[1772478367964,6.21907316,2029.3,2028.5,0.001]
[1772478368167,6.21907316,2029.0,2028.3,0.001]
[1772478368363,6.21907316,2028.8,2028.3,0.001]
[1772478368756,1.912,2028.9,2028.3,1.2335585]
[1772478369461,1.23225552,2028.8,2028.3,0.001]
[1772478371444,7.45132868,2028.8,2028.3,0.001]
[1772478372071,8.64556157,2028.6,2028.0,0.001]
[1772478372273,8.64556157,2028.6,2027.5,6.30014757]
[1772478372274,6.21907316,2028.4,2027.5,6.30014757]
[1772478372474,6.21907316,2028.2,2027.3,7.53325475]
[1772478372776,1.916,2028.1,2027.3,7.53325475]
[1772478373360,1.23274161,2028.0,2027.3,7.53325475]
[1772478374644,7.45181477,2028.0,2027.2,1.23422148]
[1772478374991,6.21907316,2027.7,2027.0,5.38050511]
[1772478375145,6.07017267,2027.4,2026.7,0.001]
[1772478375349,2.42648841,2027.5,2026.7,7.53467916]
[1772478375350,1.23304562,2027.5,2026.7,7.53467916]
[1772478376574,3.14902727,2027.6,2026.7,7.53467916]
[1772478377346,1.916,2027.6,2027.1,6.22755058]
[1772478377541,4.9311147,2028.0,2027.1,6.22755058]
[1772478377542,1.916,2028.0,2027.1,6.22755058]
[1772478378362,1.23249852,2028.4,2027.3,6.22755058]
[1772478378584,3.14749852,2028.4,2027.3,6.22755058]
[1772478378789,2.01381483,2028.5,2027.3,6.22755058]
[1772478378989,2.01378009,2028.5,2027.5,6.22755058]
[1772478379217,6.07017267,2027.6,2026.8,0.26528166]
[1772478379377,3.40386441,2027.7,2026.8,7.46100389]
[1772478379378,1.917,2027.5,2026.8,7.46100389]
[1772478380501,3.15005828,2027.5,2026.8,7.46100389]
[1772478380702,1.917,2027.5,2026.8,7.46100389]
[1772478381291,3.15005428,2027.5,2026.8,7.46100389]
[1772478381672,3.15005978,2027.5,2026.8,7.46100389]
[1772478382101,3.15004923,2027.5,2026.8,7.46100389]
[1772478382304,11.00144214,2027.9,2027.0,6.22755058]
[1772478382305,1.915,2027.9,2027.0,6.22755058]
[1772478382607,1.915,2028.3,2027.0,6.22755058]
[1772478383102,7.98517267,2028.3,2027.1,6.22755058]
[1772478386871,0.002,2027.8,2027.3,6.22755058]
[1772478387688,0.002,2028.0,2027.4,7.46065702]
[1772478387889,1.917,2028.3,2027.5,6.22755058]
[1772478388493,3.14956329,2028.3,2027.5,6.22755058]
[1772478388687,1.917,2028.3,2027.5,6.22755058]
[1772478389002,9.2217379,2028.3,2027.4,1.23310644]
[1772478389507,9.2217379,2028.3,2027.1,11.16069023]
[1772478389508,6.07217267,2028.2,2027.2,1.23317274]
[1772478389684,1.23268083,2028.1,2027.2,6.22755058]
[1772478390601,1.23268083,2028.1,2026.9,2.83034977]
[1772478390602,6.07217267,2027.4,2026.7,0.001]
[1772478390777,6.05161072,2026.9,2026.4,0.001]
[1772478391406,6.05161072,2026.7,2025.9,0.001]
[1772478391606,6.05161072,2026.7,2025.9,0.069536]
[1772478391607,7.96261072,2026.6,2025.9,0.069536]
[1772478391812,1.23365408,2026.5,2025.9,0.069536]
[1772478392109,6.05161072,2026.6,2025.9,0.069536]
[1772478392479,6.05161072,2026.6,2025.9,1.30354601]
[1772478392717,6.05161072,2026.6,2025.9,0.069536]
[1772478393644,1.912,2026.7,2025.9,0.069536]
[1772478393827,1.23359321,2026.6,2025.9,1.30355321]
[1772478394719,3.14556339,2026.7,2025.9,1.30355321]
[1772478395029,3.14556339,2026.7,2025.9,7.53110379]
[1772478395030,3.14553551,2026.7,2025.9,7.53110379]
[1772478395535,1.912,2026.7,2025.9,7.53110379]
[1772478395734,1.913,2027.2,2025.9,7.53110379]
[1772478395943,3.14622809,2027.2,2026.2,6.22755058]
[1772478396458,1.913,2027.2,2026.4,6.22755058]
[1772478396666,0.74333886,2027.3,2026.4,6.22755058]
[1772478396831,0.74333886,2027.3,2026.6,6.22755058]
[1772478397033,1.97651265,2027.3,2026.3,6.22755058]
[1772478397471,0.74333886,2027.3,2026.5,6.22755058]
[1772478397842,1.97652547,2027.3,2026.6,1.23359321]
[1772478398264,0.74333886,2027.3,2026.7,0.068536]
[1772478399365,0.002,2027.0,2026.7,0.068536]
[1772478399866,0.002,2027.0,2026.8,1.23347148]
[1772478400939,0.002,2027.2,2026.9,0.068536]
[1772478402632,0.002,2027.2,2026.9,1.30193935]
[1772478402837,0.002,2027.2,2026.9,0.068536]
[1772478403452,0.002,2027.2,2026.2,1.23380484]
[1772478403453,7.96361072,2027.1,2026.2,1.23380484]
[1772478403637,6.05361072,2027.0,2026.1,0.001]
[1772478404765,1.23341062,2026.9,2026.1,0.001]
[1772478405065,7.28702134,2026.9,2026.1,0.001]
[1772478406566,6.05361072,2026.8,2025.9,0.001]
[1772478406866,6.05361072,2026.8,2025.6,0.001]
[1772478406867,6.05261072,2026.5,2025.6,0.001]
[1772478407071,3.40386441,2026.6,2025.6,0.001]
[1772478407072,6.05261072,2026.3,2025.6,0.001]
[1772478408865,7.28644745,2026.2,2025.6,0.001]
[1772478410185,1.23383673,2026.2,2025.6,0.001]
[1772478410365,4.92534695,2026.3,2025.6,0.001]
[1772478410544,1.48038839,2026.8,2025.6,0.001]
[1772478410545,6.05261072,2028.7,2028.1,0.2572]
[1772478410744,6.05261072,2028.7,2027.6,1.2329848]
[1772478410973,7.28493406,2028.7,2027.6,1.2329848]
[1772478411267,6.09943297,2028.6,2027.5,1.23300433]
[1772478411488,4.63618775,2028.7,2027.4,1.23306221]
[1772478411489,6.09943297,2028.4,2027.4,1.23306221]
[1772478412288,1.918,2028.5,2027.4,7.19112036]
[1772478412867,1.23249852,2028.4,2027.4,7.19112036]
[1772478413460,3.15046473,2028.5,2027.4,7.19112036]
[1772478413791,6.09943297,2028.2,2027.1,1.23328192]
[1772478415068,1.23268083,2028.1,2027.1,1.23328192]
[1772478415272,1.914,2028.0,2027.1,1.23328192]
[1772478417060,1.98214399,2027.9,2027.1,1.23328192]
[1772478417280,0.74933888,2027.9,2027.1,7.19134007]
[1772478419396,1.98214927,2027.9,2027.1,7.19134007]
[1772478419568,0.74933888,2027.9,2027.1,7.19134007]
[1772478420671,1.98216141,2027.9,2027.1,7.19134007]
[1772478421085,0.74933888,2027.9,2027.1,7.19134007]
[1772478422076,1.98215409,2027.9,2027.1,7.19134007]
[1772478422281,1.98215409,2027.9,2027.0,1.23330696]
[1772478422478,6.84877185,2027.9,2026.9,1.2333731]
[1772478422755,0.74933888,2027.9,2026.9,7.19143125]
[1772478422871,6.09943297,2027.8,2026.9,1.2333731]
[1772478423771,6.09943297,2027.5,2026.3,5.95805815]
[1772478424020,6.09943297,2027.3,2026.3,1.23377386]
[1772478424207,1.905,2027.4,2026.3,7.19183201]
[1772478425900,1.23316726,2027.3,2026.3,7.19183201]
[1772478426103,1.98250614,2027.3,2026.3,7.19183201]
[1772478427005,6.09943297,2027.2,2026.2,1.23380284]
[1772478428210,1.23328893,2027.1,2026.2,1.23380284]
[1772478428417,6.09943297,2027.0,2026.0,5.95805815]
[1772478428616,6.09943297,2026.8,2025.7,1.91649274]
[1772478429215,5.30586441,2026.9,2025.6,0.001]
[1772478429216,6.09843297,2026.5,2025.6,0.001]
[1772478429382,6.09843297,2026.3,2025.6,0.001]
[1772478430194,1.23383673,2026.2,2025.6,0.001]
[1772478431165,7.3322697,2026.2,2025.6,0.001]
[1772478431560,7.3322697,2026.2,2025.0,4.9380387]
[1772478431561,6.09843297,2025.9,2024.8,0.1593412]
[1772478431783,6.09843297,2025.4,2024.2,5.95805815]
[1772478431999,3.40386441,2025.5,2024.2,7.1931035]
[1772478432000,6.09843297,2025.2,2024.2,7.1931035]
[1772478432257,6.09843297,2024.8,2022.7,5.95805815]
[1772478432626,1.909,2024.7,2022.9,5.95805815]
[1772478432828,1.909,2024.7,2023.1,5.95805815]
[1772478433057,6.09843297,2024.6,2023.1,5.95805815]
[1772478433428,6.09843297,2024.4,2022.7,5.95805815]
[1772478433630,6.09843297,2024.1,2022.7,5.95805815]
[1772478433932,1.908,2024.4,2022.9,5.95805815]
[1772478434135,0.74933888,2024.2,2023.1,5.95805815]
[1772478434957,0.74933888,2024.2,2023.2,5.95805815]
[1772478435360,1.511,2024.4,2023.2,5.95805815]
[1772478436045,2.80366033,2024.9,2023.2,5.95805815]
[1772478436240,1.569,2024.9,2023.6,6.33286665]
[1772478436448,1.569,2024.9,2023.7,6.33286665]
[1772478437645,1.664,2025.4,2023.9,6.15570015]
[1772478438142,4.836,2025.6,2024.4,6.15570015]
[1772478438342,4.836,2025.6,2024.6,6.15570015]
[1772478438343,6.0702182,2025.6,2024.6,6.15570015]
[1772478439152,3.61089931,2025.7,2024.6,6.15570015]
[1772478439663,2.37674897,2025.7,2024.6,6.15570015]
[1772478440177,3.13993811,2026.1,2024.6,6.15570015]
[1772478440361,3.13993811,2026.1,2024.8,6.15570015]
[1772478441177,9.53847293,2026.1,2024.8,6.15570015]
[1772478442078,3.13993811,2026.1,2024.8,6.15570015]
[1772478442672,3.13993811,2026.1,2025.0,6.15570015]
[1772478442876,1.906,2026.1,2025.0,6.15570015]
[1772478443184,3.1399019,2026.1,2025.0,6.15570015]
[1772478443656,11.97635681,2026.1,2025.0,6.15570015]
[1772478443975,6.39853482,2026.0,2024.6,11.09481463]
[1772478444178,6.39853482,2026.0,2024.7,6.15570015]
[1772478444554,1.23401944,2025.9,2024.9,6.15570015]
[1772478445357,1.23399532,2026.0,2024.9,6.15570015]
[1772478446579,1.23399532,2026.0,2025.1,6.15570015]
[1772478448550,7.63253014,2026.0,2024.8,7.39034576]
[1772478449596,1.23399532,2026.0,2024.8,7.39034576]
[1772478451297,0.002,2025.8,2024.8,7.39034576]
[1772478451865,1.906,2026.1,2024.8,1.23464561]
[1772478452074,1.903,2026.5,2025.1,6.15570015]
[1772478452267,0.002,2026.3,2025.3,6.15570015]
[1772478452706,0.002,2026.3,2025.5,6.15570015]
[1772478453695,0.002,2026.3,2025.4,1.23432408]
[1772478453696,6.40053482,2026.3,2025.4,1.23432408]
[1772478453873,6.40053482,2026.3,2025.2,6.15570015]
[1772478454073,8.83645491,2026.2,2025.2,1.23439708]
[1772478454288,6.39853482,2026.2,2025.2,1.23439708]
[1772478454795,1.23581243,2026.3,2025.2,6.15570015]
[1772478456295,7.63434725,2026.3,2025.2,6.15570015]
[1772478456795,7.63434725,2026.3,2025.3,1.23438502]
[1772478456984,7.63434725,2026.3,2025.2,7.39012664]
[1772478457198,6.39853482,2026.1,2024.9,7.39028079]
[1772478458892,6.39853482,2025.9,2024.8,1.2346492]
[1772478459098,8.29653482,2025.8,2024.8,1.2346492]
[1772478459470,8.29653482,2025.8,2024.8,7.39034935]
[1772478459670,1.898,2025.8,2024.8,7.39034935]
[1772478460501,0.002,2026.3,2024.9,0.065536]
[1772478460682,0.002,2026.3,2025.2,6.15570015]
[1772478460871,1.896,2026.7,2025.4,6.15570015]
[1772478461076,3.12953617,2026.7,2025.4,6.15570015]
[1772478461488,3.12953798,2026.7,2025.4,6.15570015]
[1772478461800,3.12953798,2026.7,2025.3,1.23438502]
[1772478461801,3.12953798,2026.7,2025.6,6.15570015]
[1772478462179,1.896,2026.7,2025.6,6.15570015]
[1772478462494,3.12953998,2026.7,2025.6,6.15570015]
[1772478462884,3.12953998,2026.7,2025.8,6.15570015]
[1772478463799,1.896,2026.7,2025.8,6.15570015]
[1772478464182,3.1295366,2026.7,2025.8,6.15570015]
[1772478465004,3.1295366,2026.7,2025.9,7.38971959]
[1772478465707,1.896,2026.7,2025.9,7.38971959]
[1772478465886,4.93292669,2027.2,2026.2,2.73158706]
[1772478465887,1.893,2027.2,2026.2,2.73158706]
[1772478466083,1.893,2027.2,2026.3,6.15570015]
[1772478466680,0.002,2026.7,2026.3,6.15570015]